[Event "12th Arad Open 2019"]
[Site "Arad"]
[Date "2019.07.27"]
[Round "5.5"]
[White "Macovei, Andrei"]
[Black "Ciorgovean, Iustin"]
[Result "0-1"]
[ECO "B51"]
[WhiteElo "2424"]
[BlackElo "2330"]
[Annotator "NA"]
[PlyCount "64"]
[EventDate "2019.07.24"]
[EventType "swiss"]
[EventCountry "ROU"]
[SourceTitle "playchess.com"]
[Source "ChessBase"]
[SourceQuality "1"]
[TimeControl "40/5400+30:900+30"]

1. e4 {[%emt 0:00:00]} c5 {[%emt 0:00:00]} 2. Nf3 {[%emt 0:00:00]} d6 {[%emt 0:00:00]} 3. Bb5+ {[%emt 0:01:50]} Nd7 {[%emt 0:00:00]} 4. O-O {[%emt 0:00:16]} a6 {[%emt 0:00:00]} 5. Bd3 {[%emt 0:00:05]} Ngf6 {[%emt 0:03:35]} 6. Re1 {[%emt 0:00:15]} e6 {[%emt 0:00:31]} 7. c3 {[%emt 0:01:10]} b5 {[%emt 0:00:43]} 8. Bc2 {[%emt 0:00:44]} c4 {[%emt 0:01:01]} 9. a4 {[%emt 0:00:54]} Bb7 {[%emt 0:00:41]} 10. d4 {[%emt 0:00:53]} cxd3 {[%emt 0:09:53]} 11. Qxd3 {[%emt 0:00:15]} Nc5 {[%emt 0:13:32]} 12. Qe2 {[%emt 0:00:17]} bxa4 {[%emt 0:02:24]} 13. e5 {[%emt 0:00:23]} dxe5 {[%emt 0:03:08]} 14. Nxe5 {[%emt 0:00:06]} Be7 {[%emt 0:02:41]} 15. Rd1 {[%emt 0:18:43]} Qc8 {[%emt 0:04:26]} 16. Rxa4 {[%emt 0:10:51]} Nxa4 {[%emt 0:05:36]} 17. Bxa4+ {[%emt 0:00:04]} Kf8 {[%emt 0:00:18]} 18. Na3 {[%emt 0:05:39]} Qc5 {[%emt 0:19:11]} 19. b4 {[%emt 0:39:08]} Qxc3 {[%emt 0:04:09]} 20. Nac4 {[%emt 0:01:03]} Qxb4 {[%emt 0:01:53]} 21. Bc6 {[%emt 0:03:52]} Rb8 {[%emt 0:09:36]} 22. Ba3 {[%emt 0:03:54]} Qb3 {[%emt 0:02:41]} 23. Bxe7+ {[%emt 0:00:47]} Kxe7 {[%emt 0:00:03]} 24. Na5 {[%emt 0:05:52]} Qb6 {[%emt 0:00:13]} 25. Bxb7 {[%emt 0:00:04]} Rxb7 {[%emt 0:00:57]} 26. Nec6+ {[%emt 0:00:03]} Ke8 {[%emt 0:05:16]} 27. Nxb7 {[%emt 0:01:28]} Qxc6 {[%emt 0:00:12]} 28. Rd8+ {[%emt 0:01:20]} Ke7 {[%emt 0:00:07]} 29. Qd2 {[%emt 0:01:25]} Qb6 {[%emt 0:01:15]} 30. Qd6+ {[%emt 0:02:52]} Qxd6 {[%emt 0:00:17]} 31. Rxd6 {[%emt 0:00:01]} Rb8 {[%emt 0:01:19]} 32. Rb6 {[%emt 0:00:01]} a5 {[%emt 0:00:53]} 0-1

[Event "12th Arad Open 2019"]
[Site "Arad"]
[Date "2019.07.27"]
[Round "5.6"]
[White "Bonte, Andrei-Mihai"]
[Black "Petrisor, Adrian-Marian"]
[Result "1/2-1/2"]
[ECO "E20"]
[WhiteElo "2337"]
[BlackElo "2422"]
[Annotator "NA"]
[PlyCount "32"]
[EventDate "2019.07.24"]
[EventType "swiss"]
[EventCountry "ROU"]
[SourceTitle "playchess.com"]
[Source "ChessBase"]
[SourceQuality "1"]
[TimeControl "40/5400+30:900+30"]

1. d4 {[%emt 0:00:00]} Nf6 {[%emt 0:00:00]} 2. c4 {[%emt 0:00:34]} e6 {[%emt 0:01:39]} 3. Nc3 {[%emt 0:02:30]} Bb4 {[%emt 0:00:24]} 4. g3 {[%emt 0:00:06]} c5 {[%emt 0:07:53]} 5. Nf3 {[%emt 0:00:38]} cxd4 {[%emt 0:01:43]} 6. Nxd4 {[%emt 0:00:16]} O-O {[%emt 0:00:29]} 7. Bg2 {[%emt 0:00:37]} d5 {[%emt 0:00:19]} 8. Qb3 {[%emt 0:03:17]} Bxc3+ {[%emt 0:02:58]} 9. bxc3 {[%emt 0:00:52]} e5 {[%emt 0:04:22]} 10. Nf3 {[%emt 0:05:46]} dxc4 {[%emt 0:05:20]} 11. Qxc4 {[%emt 0:00:15]} Be6 {[%emt 0:03:54]} 12. Qb5 {[%emt 0:01:22]} Qd5 {[%emt 0:05:46]} 13. c4 {[%emt 0:07:14]} Qxc4 {[%emt 0:02:36]} 14. Qxc4 {[%emt 0:00:05]} Bxc4 {[%emt 0:00:08]} 15. Nxe5 {[%emt 0:00:05]} Bd5 {[%emt 0:00:08]} 16. O-O {[%emt 0:14:40]} Bxg2 {[%emt 0:02:12]} 1/2-1/2

[Event "12th Arad Open 2019"]
[Site "Arad"]
[Date "2019.07.27"]
[Round "5.8"]
[White "Nester, Ihor"]
[Black "Weinzettl, Ernst"]
[Result "1-0"]
[ECO "E62"]
[WhiteElo "2361"]
[BlackElo "2165"]
[Annotator "NA"]
[PlyCount "119"]
[EventDate "2019.07.24"]
[EventType "swiss"]
[EventCountry "ROU"]
[SourceTitle "playchess.com"]
[Source "ChessBase"]
[SourceQuality "1"]
[TimeControl "40/5400+30:900+30"]

1. Nf3 {[%emt 0:05:11]} Nf6 {[%emt 0:00:00]} 2. c4 {[%emt 0:00:03]} g6 {[%emt 0:00:00]} 3. d4 {[%emt 0:00:04]} Bg7 {[%emt 0:00:06]} 4. g3 {[%emt 0:00:03]} O-O {[%emt 0:00:13]} 5. Bg2 {[%emt 0:00:02]} d6 {[%emt 0:00:21]} 6. O-O {[%emt 0:00:07]} c6 {[%emt 0:03:31]} 7. Nc3 {[%emt 0:00:06]} Qa5 {[%emt 0:00:27]} 8. e4 {[%emt 0:03:47]} e5 {[%emt 0:00:20]} 9. h3 {[%emt 0:00:46]} Nbd7 {[%emt 0:00:41]} 10. Re1 {[%emt 0:04:38]} exd4 {[%emt 0:05:10]} 11. Nxd4 {[%emt 0:00:12]} Ne5 {[%emt 0:00:10]} 12. Bf1 {[%emt 0:01:45]} Re8 {[%emt 0:07:16]} 13. Be3 {[%emt 0:07:03]} c5 {[%emt 0:06:36]} 14. Nb3 {[%emt 0:06:37]} Qb4 {[%emt 0:00:41]} 15. Nd2 {[%emt 0:14:15]} a6 {[%emt 0:11:47]} 16. Rb1 {[%emt 0:10:07]} Qa5 {[%emt 0:18:30]} 17. a3 {[%emt 0:00:55]} Qd8 {[%emt 0:04:03]} 18. f4 {[%emt 0:07:26]} Nc6 {[%emt 0:00:12]} 19. Bg2 {[%emt 0:00:20]} h5 {[%emt 0:06:06]} 20. Nd5 {[%emt 0:02:24]} Nxd5 {[%emt 0:11:20]} 21. cxd5 {[%emt 0:00:09]} Nd4 {[%emt 0:00:07]} 22. b4 {[%emt 0:01:24]} b6 {[%emt 0:02:01]} 23. bxc5 {[%emt 0:00:45]} bxc5 {[%emt 0:00:04]} 24. Nc4 {[%emt 0:03:38]} Nb5 {[%emt 0:02:48]} 25. Rb3 {[%emt 0:06:05]} Bd4 {[%emt 0:06:28]} 26. Bxd4 {[%emt 0:06:35]} Nxd4 {[%emt 0:01:30]} 27. Rb6 {[%emt 0:00:18]} Bd7 {[%emt 0:01:06]} 28. Rxd6 {[%emt 0:01:47]} Nb5 {[%emt 0:00:42]} 29. Rxd7 {[%emt 0:00:48]} Qxd7 {[%emt 0:00:02]} 30. Nb6 {[%emt 0:00:07]} Qa7 {[%emt 0:00:08]} 31. Nxa8 {[%emt 0:00:09]} c4+ {[%emt 0:00:18]} 32. Kh2 {[%emt 0:00:20]} Rxa8 {[%emt 0:00:50]} 33. a4 {[%emt 0:08:41]} Nd6 {[%emt 0:00:37]} 34. Qd2 {[%emt 0:01:22]} Rb8 {[%emt 0:00:35]} 35. e5 {[%emt 0:00:21]} Nf5 {[%emt 0:00:09]} 36. d6 {[%emt 0:00:41]} Qd7 {[%emt 0:00:56]} 37. Qc2 {[%emt 0:02:09]} Rb3 {[%emt 0:04:36]} 38. Qxc4 {[%emt 0:01:56]} Rxg3 {[%emt 0:00:08]} 39. Qxa6 {[%emt 0:03:26]} Rc3 {[%emt 0:00:11]} 40. Qb5 {[%emt 0:00:00]} Qd8 {[%emt 0:00:00]} 41. Qb4 {[%emt 0:06:55]} Rc2 {[%emt 0:01:53]} 42. Qe4 {[%emt 0:00:35]} Qh4 {[%emt 0:00:39]} 43. Rd1 {[%emt 0:07:07]} Qg3+ {[%emt 0:06:28]} 44. Kh1 {[%emt 0:00:01]} Rc8 {[%emt 0:01:06]} 45. d7 {[%emt 0:03:08]} Rd8 {[%emt 0:00:07]} 46. e6 {[%emt 0:00:28]} fxe6 {[%emt 0:00:38]} 47. Qxe6+ {[%emt 0:00:06]} Kg7 {[%emt 0:00:04]} 48. Qe5+ {[%emt 0:00:23]} Kh7 {[%emt 0:00:23]} 49. a5 {[%emt 0:01:36]} Qb3 {[%emt 0:03:51]} 50. Qd5 {[%emt 0:00:32]} Qa4 {[%emt 0:00:15]} 51. Qd2 {[%emt 0:02:20]} Kh6 {[%emt 0:02:29]} 52. Bf1 {[%emt 0:00:16]} h4 {[%emt 0:02:05]} 53. Kg1 {[%emt 0:00:25]} Qa3 {[%emt 0:08:22]} 54. a6 {[%emt 0:00:23]} Qg3+ {[%emt 0:02:09]} 55. Qg2 {[%emt 0:00:54]} Qe3+ {[%emt 0:00:34]} 56. Qf2 {[%emt 0:00:10]} Qb3 {[%emt 0:00:07]} 57. Rd3 {[%emt 0:00:27]} Qa4 {[%emt 0:00:43]} 58. a7 {[%emt 0:00:16]} Ng3 {[%emt 0:00:07]} 59. Bg2 {[%emt 0:00:28]} Qa6 {[%emt 0:00:31]} 60. Rd2 {[%emt 0:00:44]} 1-0

[Event "12th Arad Open 2019"]
[Site "Arad"]
[Date "2019.07.27"]
[Round "5.9"]
[White "Florescu, Codrut-Constantin"]
[Black "Stoleriu, George"]
[Result "1/2-1/2"]
[ECO "E11"]
[WhiteElo "2312"]
[BlackElo "2360"]
[Annotator "NA"]
[PlyCount "37"]
[EventDate "2019.07.24"]
[EventType "swiss"]
[EventCountry "ROU"]
[SourceTitle "playchess.com"]
[Source "ChessBase"]
[SourceQuality "1"]
[TimeControl "40/5400+30:900+30"]

1. d4 {[%emt 0:01:19]} e6 {[%emt 0:00:00]} 2. Nf3 {[%emt 0:00:31]} Nf6 {[%emt 0:00:00]} 3. c4 {[%emt 0:00:20]} Bb4+ {[%emt 0:01:20]} 4. Nbd2 {[%emt 0:00:07]} b6 {[%emt 0:00:21]} 5. g3 {[%emt 0:02:14]} c5 {[%emt 0:14:14]} 6. dxc5 {[%emt 0:01:01]} bxc5 {[%emt 0:00:03]} 7. Bg2 {[%emt 0:00:18]} Bb7 {[%emt 0:00:03]} 8. O-O {[%emt 0:00:33]} Bxd2 {[%emt 0:04:38]} 9. Bxd2 {[%emt 0:01:39]} d6 {[%emt 0:00:18]} 10. b4 {[%emt 0:05:25]} Nbd7 {[%emt 0:13:09]} 11. Bf4 {[%emt 0:14:38]} e5 {[%emt 0:01:31]} 12. Bg5 {[%emt 0:00:26]} Qc7 {[%emt 0:10:24]} 13. Bxf6 {[%emt 0:00:50]} Nxf6 {[%emt 0:00:14]} 14. b5 {[%emt 0:00:06]} O-O {[%emt 0:00:40]} 15. a4 {[%emt 0:01:04]} Rfe8 {[%emt 0:03:30]} 16. a5 {[%emt 0:06:40]} e4 {[%emt 0:10:25]} 17. Ne1 {[%emt 0:11:59]} e3 {[%emt 0:06:14]} 18. f3 {[%emt 0:00:07]} Rad8 {[%emt 0:02:07]} 19. a6 {[%emt 0:00:08]} 1/2-1/2

[Event "12th Arad Open 2019"]
[Site "Arad"]
[Date "2019.07.27"]
[Round "5.10"]
[White "Zawadzka, Jolanta"]
[Black "Gilea, Lucian"]
[Result "1-0"]
[ECO "B10"]
[WhiteElo "2422"]
[BlackElo "2287"]
[Annotator "NA"]
[PlyCount "105"]
[EventDate "2019.07.24"]
[EventType "swiss"]
[EventCountry "ROU"]
[SourceTitle "playchess.com"]
[Source "ChessBase"]
[SourceQuality "1"]
[TimeControl "40/5400+30:900+30"]

1. e4 {[%emt 0:04:10]} c6 {[%emt 0:00:00]} 2. Nf3 {[%emt 0:00:20]} d5 {[%emt 0:00:00]} 3. Nc3 {[%emt 0:00:16]} dxe4 {[%emt 0:00:00]} 4. Nxe4 {[%emt 0:00:06]} Nf6 {[%emt 0:00:00]} 5. Nxf6+ {[%emt 0:00:26]} exf6 {[%emt 0:00:06]} 6. Bc4 {[%emt 0:00:19]} Bd6 {[%emt 0:02:19]} 7. Qe2+ {[%emt 0:00:24]} Qe7 {[%emt 0:00:49]} 8. Qxe7+ {[%emt 0:00:16]} Kxe7 {[%emt 0:00:54]} 9. O-O {[%emt 0:00:26]} Re8 {[%emt 0:03:24]} 10. d4 {[%emt 0:03:06]} Bf5 {[%emt 0:01:01]} 11. Bb3 {[%emt 0:03:34]} Kf8 {[%emt 0:01:51]} 12. Be3 {[%emt 0:03:29]} a5 {[%emt 0:04:44]} 13. a4 {[%emt 0:04:11]} Na6 {[%emt 0:01:41]} 14. c3 {[%emt 0:06:55]} Nc7 {[%emt 0:00:22]} 15. c4 {[%emt 0:03:01]} Na6 {[%emt 0:04:49]} 16. c5 {[%emt 0:18:39]} Be7 {[%emt 0:04:35]} 17. Nd2 {[%emt 0:00:36]} Nb4 {[%emt 0:00:42]} 18. Nc4 {[%emt 0:01:04]} Be6 {[%emt 0:02:30]} 19. Ra3 {[%emt 0:09:11]} Nc2 {[%emt 0:15:44]} 20. Bxc2 {[%emt 0:00:38]} Bxc4 {[%emt 0:00:02]} 21. Rb1 {[%emt 0:00:47]} g6 {[%emt 0:01:58]} 22. h3 {[%emt 0:08:26]} Red8 {[%emt 0:02:45]} 23. Rc3 {[%emt 0:06:04]} Ba6 {[%emt 0:03:55]} 24. g4 {[%emt 0:01:47]} Rd7 {[%emt 0:02:29]} 25. Be4 {[%emt 0:01:53]} f5 {[%emt 0:02:14]} 26. gxf5 {[%emt 0:01:36]} Bf6 {[%emt 0:00:07]} 27. fxg6 {[%emt 0:01:09]} hxg6 {[%emt 0:00:11]} 28. Rd1 {[%emt 0:05:46]} Rad8 {[%emt 0:00:16]} 29. Rc2 {[%emt 0:00:11]} Ke8 {[%emt 0:02:56]} 30. Rcd2 {[%emt 0:00:33]} Bc4 {[%emt 0:00:16]} 31. Bc2 {[%emt 0:00:56]} Bd5 {[%emt 0:03:07]} 32. Bf4 {[%emt 0:03:07]} Re7 {[%emt 0:05:51]} 33. Bd6 {[%emt 0:00:55]} Re6 {[%emt 0:00:01]} 34. Rd3 {[%emt 0:05:23]} Re2 {[%emt 0:04:01]} 35. Bb3 {[%emt 0:02:36]} Be7 {[%emt 0:07:48]} 36. Bxd5 {[%emt 0:00:27]} cxd5 {[%emt 0:00:12]} 37. Bxe7 {[%emt 0:02:04]} Kxe7 {[%emt 0:00:19]} 38. Rb3 {[%emt 0:00:10]} Rd7 {[%emt 0:00:14]} 39. Rb5 {[%emt 0:01:04]} Kf6 {[%emt 0:01:45]} 40. Rd3 {[%emt 0:00:00]} Kf5 {[%emt 0:00:00]} 41. Rxa5 {[%emt 0:06:40]} Rxb2 {[%emt 0:03:53]} 42. Rb5 {[%emt 0:02:05]} Ra2 {[%emt 0:00:18]} 43. Rb4 {[%emt 0:00:12]} Kf4 {[%emt 0:03:35]} 44. Kg2 {[%emt 0:00:28]} Re7 {[%emt 0:00:05]} 45. Rf3+ {[%emt 0:01:42]} Kg5 {[%emt 0:00:01]} 46. Rg3+ {[%emt 0:00:19]} Kf5 {[%emt 0:01:13]} 47. Rgb3 {[%emt 0:00:36]} f6 {[%emt 0:01:10]} 48. Kg3 {[%emt 0:01:39]} Kg5 {[%emt 0:01:15]} 49. h4+ {[%emt 0:00:21]} Kh5 {[%emt 0:00:19]} 50. Rxb7 {[%emt 0:00:28]} Rxb7 {[%emt 0:01:07]} 51. Rxb7 {[%emt 0:00:02]} g5 {[%emt 0:00:10]} 52. hxg5 {[%emt 0:00:18]} fxg5 {[%emt 0:00:03]} 53. Rd7 {[%emt 0:00:27]} 1-0

[Event "12th Arad Open 2019"]
[Site "Arad"]
[Date "2019.07.27"]
[Round "5.11"]
[White "Isfan, Ioan-Marius"]
[Black "Jianu, Vlad-Cristian"]
[Result "0-1"]
[ECO "D37"]
[WhiteElo "2164"]
[BlackElo "2523"]
[Annotator "ChessBase"]
[PlyCount "35"]
[EventDate "2019.07.24"]
[EventType "swiss"]
[EventCountry "ROU"]
[SourceTitle "playchess.com"]
[Source "ChessBase"]
[SourceQuality "1"]
[TimeControl "40/5400+30:900+30"]

1. d4 Nf6 2. Nf3 e6 3. c4 d5 4. Nc3 Nbd7 5. Bg5 c6 6. Qb3 h6 7. Bh4 Be7 8. e3 O-O 9. Rd1 b6 10. cxd5 exd5 11. Bd3 Ne4 12. Bxe7 Qxe7 13. Nxd5 cxd5 14. Qxd5 Qb4+ 15. Kf1 Ndf6 16. Qxa8 Ba6 17. Qd5 Bc8 18. Nd2 0-1

[Event "12th Arad Open 2019"]
[Site "Arad"]
[Date "2019.07.27"]
[Round "5.12"]
[White "Mitran, Anthony Cristian"]
[Black "Soltanici, Ruslan"]
[Result "0-1"]
[ECO "A46"]
[WhiteElo "2089"]
[BlackElo "2408"]
[Annotator "NA"]
[PlyCount "102"]
[EventDate "2019.07.24"]
[EventType "swiss"]
[EventCountry "ROU"]
[SourceTitle "playchess.com"]
[Source "ChessBase"]
[SourceQuality "1"]
[TimeControl "40/5400+30:900+30"]

1. d4 {[%emt 0:00:00]} Nf6 {[%emt 0:00:00]} 2. Nf3 {[%emt 0:00:00]} e6 {[%emt 0:01:51]} 3. g3 {[%emt 0:00:27]} b6 {[%emt 0:06:15]} 4. Bg2 {[%emt 0:01:02]} Bb7 {[%emt 0:00:11]} 5. O-O {[%emt 0:00:42]} c5 {[%emt 0:00:29]} 6. c4 {[%emt 0:00:29]} cxd4 {[%emt 0:00:20]} 7. Nxd4 {[%emt 0:00:10]} Bxg2 {[%emt 0:00:29]} 8. Kxg2 {[%emt 0:00:02]} Qc8 {[%emt 0:02:46]} 9. b3 {[%emt 0:13:14]} Be7 {[%emt 0:03:20]} 10. Bb2 {[%emt 0:01:08]} Qb7+ {[%emt 0:02:21]} 11. Kg1 {[%emt 0:01:11]} a6 {[%emt 0:01:17]} 12. Nc3 {[%emt 0:07:14]} O-O {[%emt 0:01:55]} 13. Re1 {[%emt 0:06:39]} d6 {[%emt 0:03:23]} 14. e4 {[%emt 0:01:01]} Nbd7 {[%emt 0:00:21]} 15. Qe2 {[%emt 0:00:23]} Rfe8 {[%emt 0:01:14]} 16. Rad1 {[%emt 0:02:09]} Bf8 {[%emt 0:02:09]} 17. Nc2 {[%emt 0:06:15]} Rac8 {[%emt 0:10:16]} 18. g4 {[%emt 0:08:02]} h6 {[%emt 0:06:47]} 19. h4 {[%emt 0:00:55]} h5 {[%emt 0:19:15]} 20. f3 {[%emt 0:16:16]} hxg4 {[%emt 0:02:14]} 21. fxg4 {[%emt 0:00:17]} Ne5 {[%emt 0:09:47]} 22. g5 {[%emt 0:01:22]} Nfd7 {[%emt 0:00:57]} 23. Rf1 {[%emt 0:08:18]} b5 {[%emt 0:01:10]} 24. cxb5 {[%emt 0:00:59]} axb5 {[%emt 0:00:11]} 25. Nd4 {[%emt 0:05:06]} b4 {[%emt 0:03:59]} 26. Na4 {[%emt 0:01:26]} Nc5 {[%emt 0:00:43]} 27. Nxc5 {[%emt 0:01:22]} Rxc5 {[%emt 0:00:14]} 28. Rc1 {[%emt 0:03:54]} d5 {[%emt 0:02:33]} 29. exd5 {[%emt 0:02:32]} Rxc1 {[%emt 0:03:33]} 30. Bxc1 {[%emt 0:08:41]} Qxd5 {[%emt 0:01:11]} 31. Be3 {[%emt 0:00:02]} Bc5 {[%emt 0:01:21]} 32. Nc2 {[%emt 0:01:04]} Rc8 {[%emt 0:09:30]} 33. Qf2 {[%emt 0:00:41]} Bf8 {[%emt 0:03:22]} 34. Nd4 {[%emt 0:02:17]} Rc3 {[%emt 0:00:28]} 35. Qf4 {[%emt 0:01:36]} Rxe3 {[%emt 0:00:40]} 36. Qxe3 {[%emt 0:00:04]} Bc5 {[%emt 0:00:07]} 37. Qf4 {[%emt 0:00:28]} Bxd4+ {[%emt 0:01:07]} 38. Kh2 {[%emt 0:00:01]} Qc5 {[%emt 0:00:33]} 39. Rc1 {[%emt 0:00:44]} Bc3 {[%emt 0:00:25]} 40. Rf1 {[%emt 0:00:00]} Qa7 {[%emt 0:00:00]} 41. Kh3 {[%emt 0:01:06]} Qxa2 {[%emt 0:05:04]} 42. h5 {[%emt 0:00:42]} Qe2 {[%emt 0:04:59]} 43. h6 {[%emt 0:01:15]} Bd2 {[%emt 0:01:25]} 44. h7+ {[%emt 0:01:26]} Kxh7 {[%emt 0:03:35]} 45. Qh4+ {[%emt 0:00:01]} Kg8 {[%emt 0:00:22]} 46. Ra1 {[%emt 0:00:03]} Qf3+ {[%emt 0:00:30]} 47. Qg3 {[%emt 0:00:16]} Qxg3+ {[%emt 0:00:41]} 48. Kxg3 {[%emt 0:00:02]} Bxg5 {[%emt 0:00:14]} 49. Ra5 {[%emt 0:00:07]} f6 {[%emt 0:00:06]} 50. Rb5 {[%emt 0:00:03]} Bd2 {[%emt 0:00:09]} 51. Kf2 {[%emt 0:00:04]} g5 {[%emt 0:01:09] Ke1} 0-1

[Event "12th Arad Open 2019"]
[Site "Arad"]
[Date "2019.07.27"]
[Round "5.13"]
[White "Secheres, Adrian-Simion"]
[Black "Voinescu, David-Ioan"]
[Result "1/2-1/2"]
[ECO "D20"]
[WhiteElo "2394"]
[BlackElo "2046"]
[Annotator "NA"]
[PlyCount "134"]
[EventDate "2019.07.24"]
[EventType "swiss"]
[EventCountry "ROU"]
[SourceTitle "playchess.com"]
[Source "ChessBase"]
[SourceQuality "1"]
[TimeControl "40/5400+30:900+30"]

1. d4 {[%emt 0:01:11]} d5 {[%emt 0:00:00]} 2. c4 {[%emt 0:00:16]} dxc4 {[%emt 0:00:00]} 3. e3 {[%emt 0:00:22]} Nf6 {[%emt 0:00:00]} 4. Bxc4 {[%emt 0:00:16]} e6 {[%emt 0:00:07]} 5. Nf3 {[%emt 0:00:28]} a6 {[%emt 0:00:21]} 6. O-O {[%emt 0:00:23]} Nbd7 {[%emt 0:00:10]} 7. a4 {[%emt 0:00:30]} c5 {[%emt 0:00:36]} 8. Re1 {[%emt 0:00:11]} Nb6 {[%emt 0:03:33]} 9. Bb3 {[%emt 0:01:47]} cxd4 {[%emt 0:02:36]} 10. exd4 {[%emt 0:01:14]} Bb4 {[%emt 0:06:37]} 11. Nc3 {[%emt 0:02:29]} h6 {[%emt 0:01:35]} 12. Qd3 {[%emt 0:07:20]} O-O {[%emt 0:07:45]} 13. Ne5 {[%emt 0:03:15]} Re8 {[%emt 0:06:00]} 14. Qg3 {[%emt 0:14:50]} Kf8 {[%emt 0:04:30]} 15. Bd2 {[%emt 0:07:41]} Nbd5 {[%emt 0:10:41]} 16. Re2 {[%emt 0:09:08]} a5 {[%emt 0:03:17]} 17. Qf3 {[%emt 0:11:32]} b6 {[%emt 0:16:51]} 18. Nc6 {[%emt 0:11:30]} Qd6 {[%emt 0:02:02]} 19. Nxb4 {[%emt 0:02:54]} axb4 {[%emt 0:00:21]} 20. Nxd5 {[%emt 0:02:28]} exd5 {[%emt 0:04:51]} 21. Qg3 {[%emt 0:03:24]} Qxg3 {[%emt 0:06:20]} 22. Bxb4+ {[%emt 0:00:13]} Kg8 {[%emt 0:01:00]} 23. Rxe8+ {[%emt 0:00:06]} Nxe8 {[%emt 0:00:03]} 24. hxg3 {[%emt 0:00:06]} Nf6 {[%emt 0:00:39]} 25. Be7 {[%emt 0:02:39]} Bd7 {[%emt 0:01:54]} 26. Bxf6 {[%emt 0:01:09]} gxf6 {[%emt 0:00:06]} 27. f3 {[%emt 0:01:21]} Kf8 {[%emt 0:00:23]} 28. Kf2 {[%emt 0:04:39]} Ke7 {[%emt 0:00:26]} 29. Bd1 {[%emt 0:02:51]} Kd6 {[%emt 0:00:42]} 30. b3 {[%emt 0:02:30]} Rc8 {[%emt 0:00:42]} 31. Ke3 {[%emt 0:00:43]} Rc3+ {[%emt 0:02:54]} 32. Kd2 {[%emt 0:00:02]} Rc8 {[%emt 0:00:12]} 33. Be2 {[%emt 0:01:14]} Rg8 {[%emt 0:00:47]} 34. g4 {[%emt 0:00:25]} f5 {[%emt 0:01:46]} 35. Rh1 {[%emt 0:00:33]} fxg4 {[%emt 0:00:10]} 36. Rxh6+ {[%emt 0:00:23]} Rg6 {[%emt 0:02:28]} 37. Rh8 {[%emt 0:01:17]} gxf3 {[%emt 0:10:05]} 38. Bxf3 {[%emt 0:00:05]} Kc6 {[%emt 0:02:10]} 39. b4 {[%emt 0:03:18]} Bf5 {[%emt 0:01:38]} 40. b5+ {[%emt 0:00:00]} Kc7 {[%emt 0:00:00]} 41. Ra8 {[%emt 0:05:22]} Be6 {[%emt 0:02:34]} 42. Rh8 {[%emt 0:03:57]} Bf5 {[%emt 0:00:09]} 43. Rf8 {[%emt 0:00:22]} Be6 {[%emt 0:00:08]} 44. Ra8 {[%emt 0:03:39]} Rh6 {[%emt 0:01:22]} 45. Kc3 {[%emt 0:05:15]} Rh1 {[%emt 0:01:06]} 46. Kb2 {[%emt 0:00:01]} Rh4 {[%emt 0:00:14]} 47. Kc3 {[%emt 0:00:53]} Rh1 {[%emt 0:00:05]} 48. Rf8 {[%emt 0:02:10]} Rc1+ {[%emt 0:00:35]} 49. Kd3 {[%emt 0:00:22]} Ra1 {[%emt 0:00:57]} 50. Bh5 {[%emt 0:00:25]} Ra3+ {[%emt 0:00:15]} 51. Ke2 {[%emt 0:00:48]} Rxa4 {[%emt 0:00:39]} 52. Bxf7 {[%emt 0:00:30]} Kd6 {[%emt 0:06:23]} 53. Bxe6 {[%emt 0:00:20]} Kxe6 {[%emt 0:00:02]} 54. Rb8 {[%emt 0:00:25]} Rxd4 {[%emt 0:00:08]} 55. Rxb6+ {[%emt 0:00:07]} Ke5 {[%emt 0:00:04]} 56. Rb8 {[%emt 0:00:28]} Kd6 {[%emt 0:03:37]} 57. b6 {[%emt 0:00:44]} Kc6 {[%emt 0:00:27]} 58. Kf3 {[%emt 0:00:18]} Rd3+ {[%emt 0:05:08]} 59. Kf4 {[%emt 0:00:17]} Rd1 {[%emt 0:00:23]} 60. g4 {[%emt 0:00:30]} d4 {[%emt 0:00:29]} 61. Kf5 d3 {[%emt 0:00:17]} 62. Rd8 {[%emt 0:01:30]} Kxb6 {[%emt 0:00:24]} 63. g5 {[%emt 0:00:30]} d2 {[%emt 0:00:04]} 64. Kg6 {[%emt 0:00:03]} Kc7 {[%emt 0:00:06]} 65. Rd3 {[%emt 0:00:06]} Kc6 {[%emt 0:00:11]} 66. Kg7 {[%emt 0:00:34]} Rg1 {[%emt 0:00:07]} 67. Rxd2 {[%emt 0:00:03]} Rxg5+ {[%emt 0:00:08]} 1/2-1/2